Cogmind - Beta 14 @@@ ROGUE MODE // 2025.03.15 @ 08:37:08 Player: LightKnight Result: Destroyed by Triborg with Siege Cannon Performance ------------- Evolutions (2) 1000 Regions Visited (8) 1600 Robots Destroyed (28) 140 Value Destroyed (843) 843 Prototype IDs (34) 680 Alien Tech Used (0) 0 Bonus (819) 819 TOTAL SCORE: 5082 Bonus ------- Follower Combat Kills 524 Aligned with FarCom 300 Friendly Fire -5 Cogmind --------- Core Integrity 0/550 Matter 274/300 Energy 92/100 System Corruption 0% Temperature Cool (98) Movement Core (100) Ox1 Location -8/Scraptown Parts ------- > --- POWER (1) -------- (None) > --- PROPULSION (2) --- (None) > --- UTILITY (6) ------ Coolant Injector Advanced Targeting Computer Makeshift Hacking Suite > --- WEAPON (2) ------- Flak Gun > --- INVENTORY (5) ---- Improved Medium Treads EM Pulse Cannon Plasma Cutter CPS Tube (1) Peak State ------------ > --- POWER ------------ Light Deuterium Engine > --- PROPULSION ------- Titanium Leg Makeshift Leg > --- UTILITY ---------- Disposable Heat Sink Lightpack 2.0 Hacking Suite Makeshift Hacking Suite > --- WEAPON ----------- Heavy Laser Flak Gun > --- INVENTORY -------- Ion Engine Ion Engine Light Nuclear Core Light Nuclear Core Aluminum Leg Aluminum Leg Carbon-fiber Leg Titanium Leg Titanium Leg Titanium Leg Titanium Leg VTOL Module VTOL Module Cooling System Small Storage Unit Compact Battery Sensor Array Sensor Array Improved Sensor Array Improved Sensor Array Improved Signal Interpreter ECM Suite Hardened Light Armor Plating System Shield System Shield Authchip [R/Combat] EM Pulse Gun Small Laser Particle Gun Heavy Laser EM Pulse Cannon Flak Gun Improved Grenade Launcher Katana [Rating: 65] Favorites ----------- Power Ion Engine Engine Ion Engine Power Core Light Nuclear Core Propulsion Aluminum Leg Treads Light Treads Leg Aluminum Leg Utility Makeshift Hacking Suite Device Disposable Heat Sink Storage Lightpack 2.0 Processor Targeting Computer Hackware Makeshift Hacking Suite Protection Reflective Plating Weapon Heavy Laser Energy Gun Heavy Laser Ballistic Gun Flak Gun Launcher Improved Grenade Launcher Special Weapon CPS Tube Build | -11 -10 -10 -10 -9 -8 -8 -8 -8 ------- Run | Yrd Mat Min Exi Min Mat Sto Rec Scr Slots Evolved 4 | . . . . . 4 . . . Power . | . . . . . . . . . Propulsion . | . . . . . . . . . Utility 4 | . . . . . 4 . . . Weapon . | . . . . . . . . . Parts Attached 37 | . 2 1 4 1 11 4 4 10 Power 5 | . 1 . . . 1 1 1 1 Engine 4 | . 1 . . . 1 1 . 1 Core 1 | . . . . . . . 1 . Reactor . | . . . . . . . . . Propulsion 10 | . . . 4 1 1 1 2 1 Treads 2 | . . . 2 . . . . . Leg 8 | . . . 2 1 1 1 2 1 Wheel . | . . . . . . . . . Hover . | . . . . . . . . . Flight . | . . . . . . . . . Utility 12 | . 1 . . . 4 2 1 4 Device 4 | . . . . . . 1 . 3 Storage 1 | . . . . . 1 . . . Processor 3 | . 1 . . . 1 . . 1 Hackware 2 | . . . . . 1 . 1 . Protection 2 | . . . . . 1 1 . . Artifact . | . . . . . . . . . Weapon 10 | . . 1 . . 5 . . 4 Energy Gun 3 | . . 1 . . 1 . . 1 Energy Cannon . | . . . . . . . . . Ballistic Gun 4 | . . . . . 2 . . 2 Ballistic Cannon . | . . . . . . . . . Launcher 2 | . . . . . 2 . . . Special Weapon 1 | . . . . . . . . 1 Impact Weapon . | . . . . . . . . . Slashing Weapon . | . . . . . . . . . Piercing Weapon . | . . . . . . . . . Special Melee Weapon . | . . . . . . . . . Unidentified Prototypes . | . . . . . . . . . Parts Lost 13 | . . . . . 1 2 2 8 Power 3 | . . . . . . 1 1 1 Propulsion 5 | . . . . . . . 1 4 Utility 4 | . . . . . 1 1 . 2 Weapon 1 | . . . . . . . . 1 Highest Loss Streak 7 | . . . . . 1 1 2 7 To Critical Strikes . | . . . . . . . . . Average Slot Usage (%) 86 | . 97 100 98 100 77 81 80 77 Engine 9 | . 14 14 14 14 9 9 7 5 Core 1 | . . . . . . . 1 3 Leg 21 | . 28 28 27 28 18 18 18 17 Device 4 | . . . . . . 1 9 12 Storage 8 | . 14 14 14 14 9 9 9 1 Processor 7 | . 11 14 14 14 8 7 . 2 Hackware 8 | . . . . . 6 9 17 16 Protection 1 | . . . . . 7 9 . . Energy Gun 16 | . 28 28 28 28 13 9 9 9 Ballistic Gun 5 | . . . . . 3 9 9 9 Peak Build Rating 65 | . 7 8 11 14 63 64 65 64 Average Rating 35 | . 6 7 9 11 54 63 64 37 On Entrance 26 | 6 6 7 8 11 14 63 62 64 Naked Turns . | . . . . . . . . . Heaviest Build 27 | 12 14 15 15 15 27 26 24 25 Greatest Support 37 | 20 20 20 20 30 37 37 37 32 Greatest Overweight (x) 4 | . . . 4 . . . . 1 Average Overweight (x) . | . . . . . . . . . Largest Inventory Capacity 40 | . 8 8 8 8 40 40 40 40 Average Capacity 20 | . 8 8 8 8 40 40 40 11 Most Carried 36 | . 8 8 8 8 25 29 36 35 Average Carried 15 | . 6 7 7 7 15 27 33 9 Final Capacity 40 | 8 8 8 8 8 40 40 40 5 Final Carried 35 | 6 7 8 8 8 25 28 35 4 Class Distribution -------------------- 36% | Mutant 34% | Hauler-Mutant 28% | Commander-Mutant Dominant Class ---------------- Mutant | -10/Materials Mutant | -10/Mines Mutant | -10/Exiles Mutant | -9/Mines Hauler-Mutant | -8/Materials Hauler-Mutant | -8/Storage Hauler-Mutant | -8/Recycling Commander-Mutant | -8/Scraptown Resources | -11 -10 -10 -10 -9 -8 -8 -8 -8 ----------- Run | Yrd Mat Min Exi Min Mat Sto Rec Scr Matter Collected 797 | 200 20 . . 60 74 227 128 88 Remotely . | . . . . . . . . . Salvage Created 900 | . 116 105 . . 80 350 249 . Parts 60 | . 11 6 . . 12 20 11 . Haulers Intercepted 1 | . . . . . . . 1 . Recyclers Shooed 1 | . . . . . . 1 . . Parts Field Recycled . | . . . . . . . . . Retrieved Matter . | . . . . . . . . . Parts Self-Destructed . | . . . . . . . . . Prevented . | . . . . . . . . . Kills | -11 -10 -10 -10 -9 -8 -8 -8 -8 ------- Run | Yrd Mat Min Exi Min Mat Sto Rec Scr Combat Hostiles Destroyed 25 | . 5 2 . . 7 7 4 . Guns 15 | . 3 . . . 1 7 4 . AOE 10 | . 2 2 . . 6 . . . Classes Destroyed 7 | . 2 . . . . 4 1 . Worker 1 | . . . . . . 1 . . Hauler 1 | . . . . . . . 1 . Watcher 1 | . . . . . . 1 . . Swarmer 9 | . 3 . . . 6 . . . Grunt 7 | . 2 2 . . 1 2 . . Sentry 7 | . . . . . . 3 4 . Hunter 2 | . . . . . . 2 . . Best Kill Streak 5 | . 5 2 . . 3 3 4 . Combat Bots Only 5 | . 5 2 . . 3 2 3 . Max Kills in Single Turn 3 | . 2 2 . . 3 1 2 . Gunslinging . | . . . . . . . . . Exploded 3 | . 2 2 . . 3 . . . Melee . | . . . . . . . . . Uniques/NPCs Destroyed . | . . . . . . . . . Combat | -11 -10 -10 -10 -9 -8 -8 -8 -8 -------- Run | Yrd Mat Min Exi Min Mat Sto Rec Scr Hostile Shots Fired 127 | . 14 2 . . 16 60 12 23 Missed 36 | . 4 1 . . 2 20 2 7 Damage Taken 1987 | . 118 16 . . 181 582 153 937 Core 680 | . 48 . . . 15 127 32 458 Absorbed by Shields 11 | . . . . . . . . 11 Ignored by Resistances 34 | . . . . . 8 26 . . Core Remaining (%) 90 | 100 . . . 80 . . . . Volleys Fired 61 | . 6 2 . . 11 27 6 9 Largest 2 | . 2 2 . . 2 2 2 2 Hottest 105 | . 80 80 . . 105 97 97 97 Shots Fired 117 | . 12 4 . . 20 52 13 16 Gun 113 | . 12 4 . . 17 52 13 15 Cannon . | . . . . . . . . . Launcher 3 | . . . . . 3 . . . Special 1 | . . . . . . . . 1 Kinetic 47 | . . . . . 7 26 6 8 Thermal 50 | . . . . . 10 26 7 7 Explosive 3 | . . . . . 3 . . . Electromagnetic 16 | . 12 4 . . . . . . Robot Hit Streak 17 | . 11 12 . . 5 12 5 17 Robot Miss Streak 9 | . . 1 . . 6 9 2 2 Penetration Max . | . . . . . . . . . Secondary Targets 3 | . 1 . . . . 2 . . Max Gunslinging Chain 1 | . 1 . . . . 1 . . Shots Hit Robots 86 | . 11 3 . . 10 38 9 15 Core Hits 78 | . 5 4 . . 16 33 9 11 Critical Kills . | . . . . . . . . . Critical Parts Destroyed . | . . . . . . . . . Critical Strikes 3 | . 1 . . . . 1 . 1 Burn 2 | . . . . . . 1 . 1 Corrupt 1 | . 1 . . . . . . . Melee Attacks . | . . . . . . . . . Impact . | . . . . . . . . . Slashing . | . . . . . . . . . Piercing . | . . . . . . . . . Sneak Attacks . | . . . . . . . . . Combat Hostiles . | . . . . . . . . . Follow-up Attacks . | . . . . . . . . . Damage Inflicted 2208 | . 274 129 . . 504 758 216 327 Guns 1670 | . 169 39 . . 161 758 216 327 Cannons . | . . . . . . . . . Explosions 535 | . 105 87 . . 343 . . . Melee . | . . . . . . . . . Ramming 3 | . . 3 . . . . . . Kinetic 886 | . . . . . 122 432 120 212 Thermal 768 | . 105 87 . . 39 326 96 115 Explosive 343 | . . . . . 343 . . . Electromagnetic 208 | . 169 39 . . . . . . Impact . | . . . . . . . . . Slashing . | . . . . . . . . . Piercing . | . . . . . . . . . Highest Corruption 2 | . . . . . 2 2 2 . Average Corruption 2 | . . . . . 2 2 2 . Corruption Purged . | . . . . . . . . . Corruption Blocked . | . . . . . . . . . Effects 20 | . . . . . 1 7 12 . Message Errors 2 | . . . . . 1 1 . . Matter Fused 6 | . . . . . . 1 5 . Heat Flow Errors 3 | . . . . . . 1 2 . Energy Discharges 1 | . . . . . . . 1 . Parts Rejected 2 | . . . . . . 1 1 . Data Loss (minor) 1 | . . . . . . . 1 . Misfires 2 | . . . . . . 1 1 . Alerts 1 | . . . . . . . 1 . Weapon Failures 2 | . . . . . . 2 . . Overload Shots . | . . . . . . . . . Overflow Damage . | . . . . . . . . . Projectiles . | . . . . . . . . . Explosions . | . . . . . . . . . Melee . | . . . . . . . . . Knockbacks . | . . . . . . . . . Impact . | . . . . . . . . . Kinetic . | . . . . . . . . . Secondary . | . . . . . . . . . Self-Inflicted Damage 20 | . 20 . . . . . . . Shots 1 | . 1 . . . . . . . Rammed . | . . . . . . . . . Targets Rammed 3 | . . 2 . . . 1 . . Kicked 3 | . . 2 . . . 1 . . Crushed . | . . . . . . . . . Highest Temperature 225 | . 132 45 . . 80 225 211 131 Average Temperature 66 | . 65 25 . . 32 80 58 78 Received Heat Transfer 366 | . 36 9 . . 36 216 45 24 Siege Activations . | . . . . . . . . . Robots Corrupted . | . . . . . . . . . Combat Hostiles . | . . . . . . . . . Parts Fried . | . . . . . . . . . Impact Corruptions . | . . . . . . . . . Robots Melted . | . . . . . . . . . Combat Hostiles . | . . . . . . . . . Parts Melted 1 | . . . . . . 1 . . Heat Transferred 1458 | . 100 100 . . 74 703 185 296 Parts Sabotaged . | . . . . . . . . . Parts Stolen . | . . . . . . . . . Parts Stripped . | . . . . . . . . . Power Chain Reactions 2 | . 1 1 . . . . . . Alert | -11 -10 -10 -10 -9 -8 -8 -8 -8 ------- Run | Yrd Mat Min Exi Min Mat Sto Rec Scr Peak Influence 190 | . 139 55 . . 190 148 127 . Initial 79 | . . 54 . . . 79 11 . Average 42 | . 92 48 . . 56 54 40 . Maximum Alert Level . | . . . . . . . . . Low Security (%) 100 | . 100 100 . 100 100 100 100 . Level 1 . | . . . . . . . . . Level 2 . | . . . . . . . . . Level 3 . | . . . . . . . . . Level 4 . | . . . . . . . . . Level 5 . | . . . . . . . . . High Security . | . . . . . . . . . Max Security . | . . . . . . . . . Squads Dispatched 2 | . 1 . . . . 1 . . Investigation 1 | . . . . . . 1 . . Extermination . | . . . . . . . . . Reinforcement 1 | . 1 . . . . . . . Assault . | . . . . . . . . . Garrison . | . . . . . . . . . Intercept . | . . . . . . . . . Searches Triggered . | . . . . . . . . . Construction Impeded . | . . . . . . . . . Haulers Reinforced . | . . . . . . . . . Active Scanning Responses . | . . . . . . . . . Cargo Convoy Interrupts . | . . . . . . . . . Stealth | -11 -10 -10 -10 -9 -8 -8 -8 -8 --------- Run | Yrd Mat Min Exi Min Mat Sto Rec Scr Distress Signals 4 | . . . . . 3 1 . . Communications Jammed . | . . . . . . . . . Distress Signals . | . . . . . . . . . Times Spotted 56 | . 6 1 . . 13 16 8 12 Peak Tracking Total 7 | . 5 2 . . 5 4 6 7 Tactical Retreats . | . . . . . . . . . Traps | -11 -10 -10 -10 -9 -8 -8 -8 -8 ------- Run | Yrd Mat Min Exi Min Mat Sto Rec Scr Traps Triggered . | . . . . . . . . . Indirectly . | . . . . . . . . . Trap Hack Attempts . | . . . . . . . . . Triggered . | . . . . . . . . . Disarmed . | . . . . . . . . . Reprogrammed . | . . . . . . . . . Reused . | . . . . . . . . . Traps Extracted . | . . . . . . . . . Installed . | . . . . . . . . . Triggered . | . . . . . . . . . Machines | -11 -10 -10 -10 -9 -8 -8 -8 -8 ---------- Run | Yrd Mat Min Exi Min Mat Sto Rec Scr Machines Disabled 3 | . 1 . . . . . . 2 Max in Single Turn 1 | . 1 . . . . . . . Machines Repaired . | . . . . . . . . . Machines Dismantled . | . . . . . . . . . Machines Sabotaged . | . . . . . . . . . Overloaded Fab Kills . | . . . . . . . . . Hacking | -11 -10 -10 -10 -9 -8 -8 -8 -8 --------- Run | Yrd Mat Min Exi Min Mat Sto Rec Scr Machines Accessed 18 | . 2 . 1 . 5 5 5 . Terminals 17 | . 2 . . . 5 5 5 . Fabricators . | . . . . . . . . . Repair Stations . | . . . . . . . . . Recycling Units . | . . . . . . . . . Scanalyzers . | . . . . . . . . . Garrison Access . | . . . . . . . . . Total Hacks 43 | . 3 . 1 . 9 15 15 . Successful 22 | . 1 . 1 . 4 9 7 . Failed 21 | . 2 . . . 5 6 8 . Catastrophic 6 | . 1 . . . 1 2 2 . Database Lockouts . | . . . . . . . . . Manual 21 | . 1 . 1 . 6 3 10 . Terminals 42 | . 3 . . . 9 15 15 . Fabricators . | . . . . . . . . . Repair Stations . | . . . . . . . . . Recycling Units . | . . . . . . . . . Scanalyzers . | . . . . . . . . . Garrison Access . | . . . . . . . . . Terminal Hacks 20 | . 1 . 1 . 4 7 7 . Robot Analysis 2 | . . . . . . 1 1 . Prototype ID Bank 7 | . . . . . 1 1 5 . Branch Access Points 1 | . . . . . 1 . . . Unreport Threat 2 | . . . . . . 2 . . Locate Traps 2 | . 1 . . . 1 . . . Recall Investigation 1 | . . . . . . 1 . . Hauler Manifests 2 | . . . . . 1 1 . . Registered Components 1 | . . . . . . . 1 . Zone Layout 1 | . . . . . . 1 . . Derelict Proto ID Bank 1 | . . . 1 . . . . . Fabricator Hacks . | . . . . . . . . . Repair Station Hacks . | . . . . . . . . . Recycling Unit Hacks . | . . . . . . . . . Scanalyzer . | . . . . . . . . . Garrison Access Hacks . | . . . . . . . . . Unauthorized Hacks 2 | . . . . . . 2 . . Terminals 2 | . . . . . . 2 . . Botnet 2 | . . . . . . 2 . . Fabricators . | . . . . . . . . . Repair Stations . | . . . . . . . . . Recycling Units . | . . . . . . . . . Scanalyzers . | . . . . . . . . . Garrison Access . | . . . . . . . . . Data Cores Recovered . | . . . . . . . . . Used . | . . . . . . . . . Hacking Detections 14 | . 1 . . . 4 4 5 . Full Trace Events . | . . . . . . . . . Feedback Events . | . . . . . . . . . Feedback Blocked . | . . . . . . . . . Robot Schematics Acquired . | . . . . . . . . . Robots Built . | . . . . . . . . . Authchips . | . . . . . . . . . Time . | . . . . . . . . . Total Robot Build Rating . | . . . . . . . . . Part Schematics Acquired . | . . . . . . . . . Parts Built . | . . . . . . . . . Authchips . | . . . . . . . . . Time . | . . . . . . . . . Total Part Build Rating . | . . . . . . . . . Parts Repaired . | . . . . . . . . . Time . | . . . . . . . . . Parts Recycled . | . . . . . . . . . Recycled Matter . | . . . . . . . . . Retrieved Matter . | . . . . . . . . . Retrieved Components . | . . . . . . . . . Parts Scanalyzed . | . . . . . . . . . Part Schematics Acquired . | . . . . . . . . . Parts Damaged . | . . . . . . . . . Bothacking | -11 -10 -10 -10 -9 -8 -8 -8 -8 ------------ Run | Yrd Mat Min Exi Min Mat Sto Rec Scr Used RIF Installer . | . . . . . . . . . Robots Hacked . | . . . . . . . . . Non-combat . | . . . . . . . . . Combat . | . . . . . . . . . Robot Hacks Applied . | . . . . . . . . . Relay Couplers Released . | . . . . . . . . . Fabnet Peak Effective % . | . . . . . . . . . Robots Rewired 12 | . . . . . . . 12 . Allies Hacked . | . . . . . . . . . Hacks Repelled . | . . . . . . . . . Allies | -11 -10 -10 -10 -9 -8 -8 -8 -8 -------- Run | Yrd Mat Min Exi Min Mat Sto Rec Scr Total Allies 15 | . . 3 . . . . 12 . Largest Group 10 | . . 3 3 3 3 2 10 10 Highest-Rated Group 213 | . . 40 40 40 40 32 213 213 Highest-Rated Ally 34 | . . 16 16 16 16 16 34 34 Total Orders 2 | . . . . 2 . . . . STAY 1 | . . . . 1 . . . . FOLLOW 1 | . . . . 1 . . . . Ally Attacks 97 | . . . . . 23 14 18 42 Total Damage 1794 | . . . . . 238 154 265 1137 Kills 18 | . . . . . 5 . 5 8 Allies Corrupted 1 | . . . . . . . . 1 Allies Melted . | . . . . . . . . . Intel | -11 -10 -10 -10 -9 -8 -8 -8 -8 ------- Run | Yrd Mat Min Exi Min Mat Sto Rec Scr Robot Analysis Total 2 | . . . . . . 1 1 . Derelict Logs Recovered 3 | . . 1 . 2 . . . . Drone Launches . | . . . . . . . . . Drone Recoveries . | . . . . . . . . . Exploration | -11 -10 -10 -10 -9 -8 -8 -8 -8 ------------- Run | Yrd Mat Min Exi Min Mat Sto Rec Scr Turns Passed 4838 | . 200 680 284 624 536 468 753 1293 Spaces Moved 3180 | 1 143 536 226 212 329 260 479 994 Core 2 | . . . 1 . . . . 1 Treads . | . . . . . . . . . Legs 3178 | 1 143 536 225 212 329 260 479 993 Wheels . | . . . . . . . . . Hover . | . . . . . . . . . Flight . | . . . . . . . . . Fastest Speed 100 | 120 120 120 120 120 130 135 125 100 Average Speed 126 | 120 120 120 120 123 134 135 133 124 Slowest Speed 250 | 120 120 120 250 130 135 135 135 130 Overloaded Moves . | . . . . . . . . . Propulsion Burnouts . | . . . . . . . . . Robots Hopped . | . . . . . . . . . Cave-ins Triggered . | . . . . . . . . . Exploration Rate (%) 50 | 2 34 94 61 34 33 49 90 55 Regions Visited 8 Branch Regions 6 Pre-discovered Areas 1 | . . 1 . . . . . . Known Exits Taken 2 | . . . . . 1 1 . . Unknown Exits Taken 6 | 1 1 1 1 1 . . 1 . Scrap Searched 8 | . . 1 . 1 . . . 6 Spaces Dug . | . . . . . . . . . Terrain Destroyed 34 | . 3 5 . . 26 . . . Melee . | . . . . . . . . . Projectile . | . . . . . . . . . AOE 34 | . 3 5 . . 26 . . . Terrain Rammed . | . . . . . . . . . Walls Destroyed . | . . . . . . . . . Machines Disabled . | . . . . . . . . . Actions | -11 -10 -10 -10 -9 -8 -8 -8 -8 --------- Run | Yrd Mat Min Exi Min Mat Sto Rec Scr Total 3881 | . 159 570 239 575 400 324 580 1034 Wait 464 | . 5 26 2 360 17 24 30 . Move 3172 | . 142 535 225 211 328 259 478 994 Hop . | . . . . . . . . . Pick Up 59 | . 2 2 1 1 26 7 12 8 Fast Attach 13 | . 1 1 2 . 4 1 1 3 Attach 12 | . . . 2 . 2 3 3 2 Detach 9 | . . . 2 . 3 1 1 2 Swap 12 | . 1 . . 1 5 . . 5 Drop 26 | . 2 2 5 2 4 . . 11 Fire 61 | . 6 2 . . 11 27 6 9 Melee . | . . . . . . . . . Ram . | . . . . . . . . . Kick 3 | . . 2 . . . 1 . . Crush . | . . . . . . . . . Escape Stasis . | . . . . . . . . . Rewire 50 | . . . . . . 1 49 . Trap . | . . . . . . . . . Miscellaneous . | . . . . . . . . . Route ------- -11/Scrapyard -10/Materials -10/Mines (discovered 2 exits: [*Mat] / *Exi) -10/Exiles (discovered 2 exits: [*Min x2]) -9/Mines -8/Materials -8/Storage -8/Recycling (discovered 2 exits: [*Fac] / [*Scr]) -8/Scraptown (discovered 1 exit: [*Fac]) History --------- Turn | Location | Event 1 | -11/Scrapyard | Discovered new exit (range 0) 1 | -11/Scrapyard | Entered Materials 176 | -10/Materials | Discovered new exit (range 13) 201 | -10/Materials | Entered Mines 217 | -10/Mines | Met a Derelict bent on vengeance 318 | -10/Mines | Build established: Mutant 425 | -10/Mines | Discovered new exit (range 9) 559 | -10/Mines | Learned location of Zion (-6) 642 | -10/Mines | Received a Rocket Launcher from a helpful Derelict 741 | -10/Mines | Deemed a non-threat by the Exiles lab entrance 741 | -10/Mines | Discovered new exit (range 5) 773 | -10/Mines | A weapon hastily lodged in a ceiling crevice suddenly fell to the ground 791 | -10/Mines | Assisted by bots powering up and referring to "LRC-V3" 808 | -10/Mines | Found a hidden stash of uninstalled traps 881 | -10/Mines | Entered Exiles 881 | -10/Exiles | Accompanied by 3 allies 899 | -10/Exiles | Discovered new exit (range 15) 914 | -10/Exiles | Met 8R-AWN 931 | -10/Exiles | Met EX-HEX 963 | -10/Exiles | Met EX-BIN 979 | -10/Exiles | Aligned with FarCom system 980 | -10/Exiles | Given EX-Vault access code 1015 | -10/Exiles | Opened EX-Vault 1040 | -10/Exiles | Found Lightpack 2.0 1068 | -10/Exiles | Warned to stay clear of 0b10 Research branches 1075 | -10/Exiles | Exiles lab attacked by MAIN.C 1151 | -10/Exiles | Discovered new exit (range 11) 1165 | -10/Exiles | Left Exiles lab with Lightpack 2.0 1165 | -10/Exiles | Entered Mines 1165 | -9/Mines | Accompanied by 3 allies 1194 | -9/Mines | Assembled infested the area 1199 | -9/Mines | Assisted by a Guerilla fighting off Assembled 1639 | -9/Mines | Learned Materials emergency access door positions 1760 | -9/Mines | Discovered new exit (range 9) 1789 | -9/Mines | Entered Materials 1789 | -8/Materials | Accompanied by 3 allies 1789 | -8/Materials | Evolved 4 slots: Utility x4 1958 | -8/Materials | Identified exit to Storage 2115 | -8/Materials | Build established: Hauler-Mutant 2325 | -8/Materials | Entered Storage 2325 | -8/Storage | Accompanied by 2 allies 2326 | -8/Storage | Identified exit to Recycling 2788 | -8/Storage | Used back door to open Recycling access 2793 | -8/Storage | Entered Recycling 3021 | -8/Recycling | Discovered new exit (range 5) 3485 | -8/Recycling | Scanned before Scraplab entrance 3502 | -8/Recycling | Entered Scraplab 3512 | -8/Recycling | Discovered new exit (range 3) 3546 | -8/Recycling | Entered Scraptown 3546 | -8/Scraptown | Accompanied by 10 allies 3546 | -8/Scraptown | System corruption cleaned by C-Scrubber 3705 | -8/Scraptown | Discovered new exit (range 7) 3745 | -8/Scraptown | Build established: Commander-Mutant 4232 | -8/Scraptown | Visited Supply Room 4260 | -8/Scraptown | Visited Bundlers 4326 | -8/Scraptown | Visited Spacefarers 4380 | -8/Scraptown | Visited CR-KLE's Repair Center 4405 | -8/Scraptown | Visited Assassins FH 4412 | -8/Scraptown | Visited Shadow of the Wyrm 4789 | -8/Scraptown | Visited Symbiants 4812 | -8/Scraptown | Attacked by Scraptown defenders 4832 | -8/Scraptown | Core integrity fell below 50% 4838 | -8/Scraptown | Core integrity fell below 20% 4839 | -8/Scraptown | Destroyed by Triborg with Siege Cannon Last Messages --------------- 04831_ Penetrated by Siege Slug. 04831_ Knocked back. 04831_ Penetrated by Siege Slug. 04831_ CL-BUC(j) knocked back. 04833_ Penetrated by Siege Slug. 04833_ Angular Momentum Engine destroyed. 04833_ Knocked back. 04835_ Triborg suffers critical hit (Burn). 04835_ Penetrated by Siege Slug. 04835_ Titanium Leg destroyed. 04835_ Hvy. Laser destroyed. 04835_ Knocked back. 04835_ Penetrated by Siege Slug. 04835_ Siege Slug penetrates Wall. 04837_ Triborg suffers critical hit (Burn). 04837_ Penetrated by Siege Slug. 04837_ Imp. Reaction Control System destroyed. 04837_ Knocked back. 04839_ Rogue 3a destroyed. 04839_ Penetrated by Siege Slug. Map ----- +----------------------------------------------------+ | #?????????####### #????????????????????? | | #??????"""""""" # #????????????????????? | | #??????""""""" # #????????????????????? | | #?????#"" # #????????????????????? | | #?????#"" # #????????????????????? | | #?????#""" # ###??????????????????? | | #?????#"X # *""#"#????????????????? | | #?????#"" # !%""""#????????????????? | | #?????#""" !""###????????????????? | | #?????#"" = ! ###??????????????????? | | #?????#"" =! % #####????????????????? | | #?????#""""" %=[ [ "????????????????? | | #???????"""" Y "????????????????? | | #????????### "????????????????? | | #???????????# [ g %% "????????????????? | | ############## %! TT "????????????????? | | * TT % "????????????????? | | % *%= "????????????????? | | ! % "????????????????? | | % *%= ! "????????????????? | | = % % "????????????????? | | !%[ % #"????????????????? | | % = % #?????????????????? | | % #?????????????????? | | ############# # ; ####?????????????????? | | #?#" ###;@ #????????????????????? | | #?#" #??#; % #????????????????????? | | "#?#""[ "#??#; #????????????????????? | | #?#""[ "#??## #????????????????????? | | ""#?#"[[==//"#???# #????????????????????? | | "#?#"""==/""#???# #????????????????????? | | ]%"#?##########???# #????????????????????? | | ""#??????????????# #????????????????????? | | #??????????????# #????????????????????? | | ### "#??????????????#j #????????????????????? | | # "#??????????????# #????????????????????? | | ! ! #?????????###### #????????????????????? | | =#"%" "#???????""""""""= #????????????????????? | | #""" ""#??????""" """"" #????????????????????? | | ##########?????""" " ""% %#????????????????????? | | ???????? ?? #????????????????????? | | ##????## #?????" "" "" " #????????????????????? | | """???"" "#???????""""""" #????????????????????? | | ""??""" "#????????"""""" #????????????????????? | | "?#""" "#?????????##### #????????????????????? | | ""##"" "#?############# #????????????????????? | | ""##"" "#?#"""""""""""# #????????????????????? | | ""##"| "#?#""!= !!!! "# #????????????????????? | | ""##"| "#?#""! ! * "# #????????????????????? | | ""##"" "#?#"" "# #????????????????????? | +----------------------------------------------------+ Best States ------------- Heat Dissipation 31 Coolant Potential 65 Energy Generation 18 Energy Capacity 300 Matter Stores 300 Matter Capacity 300 Sight Range 20 Terrain Scan Density 10 Armor Coverage 150 Resistance: TH 10 Phase Shifting 5 Evasion (%) 70 Targeting Accuracy 8 Offensive Hacking 21 Authchip Count 1 Item Schematics ----------------- None Robot Schematics ------------------ None Fabricated ------------ Nothing Alien Tech Used ----------------- None Achievements -------------- Packrat Challenges ------------ None Game ------ Seed PhaseMagneticMicrothruster Manual? 0 Play Time 00:39:46 Cumulative 198.1 hours Start 2025.03.15 @ 07:56:43 End 2025.03.15 @ 08:37:08 Sessions 1 Manual Loads 0 Difficulty Rogue Special Mode None Game No. 143 Rogue 143 Adventurer 0 Explorer 0 Win Type - Total 11 Types 11/0/0/0/0/0/0/0/0 Lore% 78 Gallery% 69 Achievement% 54 Wizard Run 0 Options --------- Layout 2 ASCII 1 Keyboard 1 Movement Arrows Keybinds 0 Fullscreen 1 Font 24/Proggy Map View 50x44 Zoom Use 0% Tactical HUD 1 Map Filters NONE Filters NONE Steam 1 RUN: 01109ec6-b8a3-4d08-8fcc-ae221cc2e1ed